[Event "Titled Tuesday Blitz January 10 Late 2023"]
[White "Ismagilov, Damir"]
[Black "Indjic, Aleksandar"]
[WhiteFideId "34199982"]
[BlackFideId "911925"]
[WhiteElo "2156"]
[BlackElo "2618"]
[Result "0-1"]
[Round "05"]
[TimeControl "180+2"]
[Date "2023.01.10"]
[WhiteClock "0:00:02"]
[BlackClock "0:01:04"]

1. e4 {[%clk 0:00:00]}  c6 {[%clk 0:00:00]} 2. d4 {[%clk 0:03:00]}  d5 {[%clk 0:02:59]} 3. e5 {[%clk 0:03:00]}  Bf5 {[%clk 0:03:00]} 4. c4 {[%clk 0:03:00]}  e6 {[%clk 0:03:00]} 5. Nc3 {[%clk 0:03:01]}  Bb4 {[%clk 0:02:58]} 6. cxd5 {[%clk 0:03:01]}  Qxd5 {[%clk 0:02:56]} 7. Ne2 {[%clk 0:02:58]}  c5 {[%clk 0:02:50]} 8. Bd2 {[%clk 0:02:39]}  Bxc3 {[%clk 0:02:46]} 9. Bxc3 {[%clk 0:02:27]}  Nc6 {[%clk 0:02:34]} 10. dxc5 {[%clk 0:02:26]}  Qxc5 {[%clk 0:02:29]} 11. Qd6 {[%clk 0:01:43]}  Qxd6 {[%clk 0:02:30]} 12. exd6 {[%clk 0:01:37]}  Nf6 {[%clk 0:02:28]} 13. Bxf6 {[%clk 0:01:38]}  gxf6 {[%clk 0:02:20]} 14. Ng3 {[%clk 0:01:33]}  Bg6 {[%clk 0:02:21]} 15. O-O-O {[%clk 0:01:28]}  O-O-O {[%clk 0:02:21]} 16. f4 {[%clk 0:01:18]}  f5 {[%clk 0:02:19]} 17. Bb5 {[%clk 0:01:09]}  a6 {[%clk 0:02:07]} 18. Bxc6 {[%clk 0:00:57]}  bxc6 {[%clk 0:01:51]} 19. Rd4 {[%clk 0:00:57]}  Kd7 {[%clk 0:01:52]} 20. Rhd1 {[%clk 0:00:55]}  Rb8 {[%clk 0:01:51]} 21. Nf1 {[%clk 0:00:55]}  Rb5 {[%clk 0:01:50]} 22. Ne3 {[%clk 0:00:52]}  Rhb8 {[%clk 0:01:47]} 23. b3 {[%clk 0:00:51]}  Bh5 {[%clk 0:01:44]} 24. R1d2 {[%clk 0:00:51]}  Rc5+ {[%clk 0:01:41]} 25. Kb2 {[%clk 0:00:49]}  f6 {[%clk 0:01:39]} 26. Ra4 {[%clk 0:00:48]}  a5 {[%clk 0:01:32]} 27. Nc4 {[%clk 0:00:36]}  Rbb5 {[%clk 0:01:31]} 28. Rd3 {[%clk 0:00:36]}  Be2 {[%clk 0:01:27]} 29. Rd4 {[%clk 0:00:34]}  Bxc4 {[%clk 0:01:24]} 30. Raxc4 {[%clk 0:00:25]}  Rxc4 {[%clk 0:01:23]} 31. Rxc4 {[%clk 0:00:24]}  Kxd6 {[%clk 0:01:24]} 32. Rc3 {[%clk 0:00:25]}  Rd5 {[%clk 0:01:23]} 33. Rg3 {[%clk 0:00:25]}  Rd4 {[%clk 0:01:22]} 34. Kc3 {[%clk 0:00:22]}  Rxf4 {[%clk 0:01:21]} 35. Rg7 {[%clk 0:00:18]}  h5 {[%clk 0:01:21]} 36. g3 {[%clk 0:00:19]}  Rf2 {[%clk 0:01:20]} 37. h4 {[%clk 0:00:15]}  Rxa2 {[%clk 0:01:20]} 38. Rh7 {[%clk 0:00:15]}  Rg2 {[%clk 0:01:20]} 39. Rxh5 {[%clk 0:00:15]}  Rxg3+ {[%clk 0:01:19]} 40. Kc4 {[%clk 0:00:16]}  f4 {[%clk 0:01:20]} 41. Rh6 {[%clk 0:00:16]}  f5 {[%clk 0:01:18]} 42. h5 {[%clk 0:00:16]}  Ke5 {[%clk 0:01:17]} 43. Rh8 {[%clk 0:00:16]}  Ke4 {[%clk 0:01:09]} 44. h6 {[%clk 0:00:14]}  e5 {[%clk 0:01:09]} 45. h7 {[%clk 0:00:15]}  Rh3 {[%clk 0:01:09]} 46. Kc5 {[%clk 0:00:15]}  f3 {[%clk 0:01:08]} 47. Kxc6 {[%clk 0:00:11]}  f2 {[%clk 0:01:08]} 48. Rd8 {[%clk 0:00:12]}  f1=Q {[%clk 0:01:08]} 49. h8=Q {[%clk 0:00:02]}  Qa6+ {[%clk 0:01:04]} 0-1


[Site "https://www.chess.com"]

[Event "Titled Tuesday Blitz January 10 Late 2023"]
[White "Averjanov, Alexey"]
[Black "Abdrlauf, Elham"]
[WhiteFideId "14109867"]
[BlackFideId "1533533"]
[WhiteElo "2399"]
[BlackElo "2518"]
[Result "1-0"]
[Round "05"]
[TimeControl "180+2"]
[Date "2023.01.10"]
[WhiteClock "0:02:13"]
[BlackClock "0:00:08"]

1. d4 {[%clk 0:00:00]}  Nf6 {[%clk 0:00:00]} 2. c4 {[%clk 0:02:59]}  e6 {[%clk 0:02:58]} 3. Nf3 {[%clk 0:02:59]}  d5 {[%clk 0:02:58]} 4. e3 {[%clk 0:02:59]}  Be7 {[%clk 0:02:57]} 5. Nbd2 {[%clk 0:02:59]}  O-O {[%clk 0:02:53]} 6. Bd3 {[%clk 0:02:58]}  b6 {[%clk 0:02:52]} 7. O-O {[%clk 0:02:58]}  Ba6 {[%clk 0:02:50]} 8. Qe2 {[%clk 0:02:58]}  c5 {[%clk 0:02:44]} 9. b3 {[%clk 0:02:58]}  Nc6 {[%clk 0:02:42]} 10. Bb2 {[%clk 0:02:55]}  Rc8 {[%clk 0:02:40]} 11. Rac1 {[%clk 0:02:54]}  cxd4 {[%clk 0:02:33]} 12. Nxd4 {[%clk 0:02:52]}  Nxd4 {[%clk 0:02:15]} 13. Bxd4 {[%clk 0:02:47]}  Ba3 {[%clk 0:01:48]} 14. Rc2 {[%clk 0:02:48]}  Qe7 {[%clk 0:01:48]} 15. Bb2 {[%clk 0:02:47]}  Bxb2 {[%clk 0:01:40]} 16. Rxb2 {[%clk 0:02:41]}  dxc4 {[%clk 0:01:16]} 17. Bxc4 {[%clk 0:02:42]}  Bb7 {[%clk 0:01:16]} 18. Ba6 {[%clk 0:02:42]}  Qa3 {[%clk 0:01:16]} 19. Bxb7 {[%clk 0:02:34]}  Qxb2 {[%clk 0:01:06]} 20. Bxc8 {[%clk 0:02:31]}  Rxc8 {[%clk 0:01:07]} 21. Qa6 {[%clk 0:02:31]}  Rd8 {[%clk 0:01:08]} 22. Nc4 {[%clk 0:02:26]}  Qe2 {[%clk 0:00:32]} 23. Qxa7 {[%clk 0:02:22]}  h6 {[%clk 0:00:31]} 24. h3 {[%clk 0:02:12]}  Nd5 {[%clk 0:00:08]} 25. Rc1 {[%clk 0:02:13]} 1-0


[Site "https://www.chess.com"]

[Event "Titled Tuesday Blitz January 10 Late 2023"]
[White "Boros, Denes"]
[Black "Chor, Kevin"]
[WhiteFideId "722340"]
[BlackFideId "2090740"]
[WhiteElo "2406"]
[BlackElo "1944"]
[Result "0-1"]
[Round "05"]
[TimeControl "180+2"]
[Date "2023.01.10"]
[WhiteClock "0:00:19"]
[BlackClock "0:00:05"]

1. d4 {[%clk 0:00:00]}  Nf6 {[%clk 0:00:00]} 2. Nc3 {[%clk 0:03:00]}  d5 {[%clk 0:02:56]} 3. Nf3 {[%clk 0:03:01]}  Bf5 {[%clk 0:02:54]} 4. Ne5 {[%clk 0:03:02]}  e6 {[%clk 0:02:41]} 5. e3 {[%clk 0:03:01]}  Bd6 {[%clk 0:02:40]} 6. g4 {[%clk 0:03:01]}  Bxe5 {[%clk 0:02:31]} 7. gxf5 {[%clk 0:03:02]}  Bd6 {[%clk 0:02:26]} 8. Qf3 {[%clk 0:03:01]}  O-O {[%clk 0:02:26]} 9. fxe6 {[%clk 0:02:59]}  fxe6 {[%clk 0:02:11]} 10. Qh3 {[%clk 0:02:56]}  Qe8 {[%clk 0:02:08]} 11. Bd3 {[%clk 0:02:56]}  c5 {[%clk 0:02:04]} 12. Nb5 {[%clk 0:02:55]}  Qe7 {[%clk 0:02:02]} 13. Nxd6 {[%clk 0:02:47]}  Qxd6 {[%clk 0:01:46]} 14. dxc5 {[%clk 0:02:47]}  Qxc5 {[%clk 0:01:47]} 15. Qxe6+ {[%clk 0:02:47]}  Kh8 {[%clk 0:01:46]} 16. Bd2 {[%clk 0:02:43]}  Nc6 {[%clk 0:01:45]} 17. O-O-O {[%clk 0:02:44]}  Rae8 {[%clk 0:01:31]} 18. Qh3 {[%clk 0:02:41]}  d4 {[%clk 0:01:31]} 19. Kb1 {[%clk 0:02:40]}  a5 {[%clk 0:01:31]} 20. exd4 {[%clk 0:02:34]}  Nxd4 {[%clk 0:01:27]} 21. Be3 {[%clk 0:02:29]}  Qd6 {[%clk 0:01:28]} 22. Bg6 {[%clk 0:02:24]}  Qe6 {[%clk 0:01:28]} 23. Qxe6 {[%clk 0:02:04]}  Rxe6 {[%clk 0:01:18]} 24. Rxd4 {[%clk 0:02:00]}  hxg6 {[%clk 0:01:18]} 25. Rg1 {[%clk 0:01:55]}  Ne4 {[%clk 0:01:18]} 26. a4 {[%clk 0:01:56]}  Nxf2 {[%clk 0:01:16]} 27. Bd2 {[%clk 0:01:44]}  Ne4 {[%clk 0:01:12]} 28. Bxa5 {[%clk 0:01:44]}  Kh7 {[%clk 0:01:09]} 29. Bb4 {[%clk 0:01:42]}  Rf2 {[%clk 0:00:57]} 30. Re1 {[%clk 0:01:34]}  Rf4 {[%clk 0:00:53]} 31. Ka2 {[%clk 0:01:25]}  g5 {[%clk 0:00:43]} 32. a5 {[%clk 0:01:15]}  Kg6 {[%clk 0:00:37]} 33. c3 {[%clk 0:01:11]}  Kf5 {[%clk 0:00:37]} 34. Ka3 {[%clk 0:01:07]}  Kg4 {[%clk 0:00:33]} 35. Rd7 {[%clk 0:01:08]}  Kh3 {[%clk 0:00:26]} 36. Rxb7 {[%clk 0:01:06]}  Kxh2 {[%clk 0:00:22]} 37. Rb6 {[%clk 0:01:04]}  Re8 {[%clk 0:00:21]} 38. Re2+ {[%clk 0:01:02]}  Kh3 {[%clk 0:00:18]} 39. Re3+ {[%clk 0:00:50]}  Kg2 {[%clk 0:00:17]} 40. a6 {[%clk 0:00:48]}  g4 {[%clk 0:00:16]} 41. Rg6 {[%clk 0:00:44]}  Ra8 {[%clk 0:00:16]} 42. Kb3 {[%clk 0:00:43]}  Kf2 {[%clk 0:00:10]} 43. Rd3 {[%clk 0:00:38]}  g3 {[%clk 0:00:09]} 44. Bd6 {[%clk 0:00:32]}  Rxa6 {[%clk 0:00:10]} 45. Rgxg3 {[%clk 0:00:29]}  Rxd6 {[%clk 0:00:08]} 46. Rxd6 {[%clk 0:00:23]}  Kxg3 {[%clk 0:00:05]} 47. Rg6+ {[%clk 0:00:20]}  Rg4 {[%clk 0:00:05]} 48. Ra6 {[%clk 0:00:19]}  Nc5+ {[%clk 0:00:05]} 0-1


[Site "https://www.chess.com"]

[Event "Titled Tuesday Blitz January 10 Late 2023"]
[White "Kourkoulos-Arditis, Stamatis"]
[Black "Kazakouski, Valery"]
[WhiteFideId "4221990"]
[BlackFideId "13507443"]
[WhiteElo "2539"]
[BlackElo "2539"]
[Result "0-1"]
[Round "05"]
[TimeControl "180+2"]
[Date "2023.01.10"]
[WhiteClock "0:00:19"]
[BlackClock "0:00:27"]

1. b3 {[%clk 0:00:00]}  e5 {[%clk 0:00:00]} 2. Bb2 {[%clk 0:02:56]}  Nc6 {[%clk 0:02:59]} 3. e3 {[%clk 0:02:55]}  Nf6 {[%clk 0:02:59]} 4. Bb5 {[%clk 0:02:55]}  Bd6 {[%clk 0:02:59]} 5. Na3 {[%clk 0:02:56]}  Be7 {[%clk 0:02:59]} 6. Nc4 {[%clk 0:02:56]}  e4 {[%clk 0:02:59]} 7. Bxc6 {[%clk 0:02:49]}  bxc6 {[%clk 0:02:59]} 8. f4 {[%clk 0:02:47]}  d6 {[%clk 0:03:00]} 9. Ne2 {[%clk 0:02:44]}  Be6 {[%clk 0:02:51]} 10. O-O {[%clk 0:02:37]}  O-O {[%clk 0:02:50]} 11. h3 {[%clk 0:02:36]}  Qb8 {[%clk 0:02:41]} 12. Rb1 {[%clk 0:02:34]}  Qb7 {[%clk 0:02:36]} 13. f5 {[%clk 0:02:33]}  Bxc4 {[%clk 0:02:19]} 14. bxc4 {[%clk 0:02:15]}  Qa6 {[%clk 0:02:19]} 15. d3 {[%clk 0:02:15]}  Rfe8 {[%clk 0:02:19]} 16. Qd2 {[%clk 0:02:13]}  Rab8 {[%clk 0:02:13]} 17. a3 {[%clk 0:01:52]}  Nd7 {[%clk 0:02:06]} 18. Ng3 {[%clk 0:01:41]}  Bf6 {[%clk 0:02:05]} 19. Bxf6 {[%clk 0:01:29]}  Rxb1 {[%clk 0:01:58]} 20. Rxb1 {[%clk 0:01:01]}  Nxf6 {[%clk 0:01:57]} 21. Rb3 {[%clk 0:01:00]}  h5 {[%clk 0:01:58]} 22. Kf2 {[%clk 0:00:54]}  h4 {[%clk 0:01:46]} 23. Ne2 {[%clk 0:00:53]}  Qc8 {[%clk 0:01:42]} 24. Qa5 {[%clk 0:00:53]}  c5 {[%clk 0:01:42]} 25. Kg1 {[%clk 0:00:47]}  exd3 {[%clk 0:01:35]} 26. Rxd3 {[%clk 0:00:44]}  Ne4 {[%clk 0:01:31]} 27. Nf4 {[%clk 0:00:45]}  Qxf5 {[%clk 0:01:26]} 28. Qxc7 {[%clk 0:00:43]}  g5 {[%clk 0:01:11]} 29. Rd5 {[%clk 0:00:39]}  Qf6 {[%clk 0:01:12]} 30. Qd7 {[%clk 0:00:37]}  Rb8 {[%clk 0:01:06]} 31. Rf5 {[%clk 0:00:30]}  Ng3 {[%clk 0:00:42]} 32. Nd5 {[%clk 0:00:19]}  Rb1+ {[%clk 0:00:27]} 0-1


[Site "https://www.chess.com"]

[Event "Titled Tuesday Blitz January 10 Late 2023"]
[White "Aggelis, Nikolaos"]
[Black "Corrales Jimenez, Fidel"]
[WhiteFideId "4213220"]
[BlackFideId "3506690"]
[WhiteElo "2270"]
[BlackElo "2489"]
[Result "1-0"]
[Round "05"]
[TimeControl "180+2"]
[Date "2023.01.10"]
[WhiteClock "0:00:12"]
[BlackClock "0:00:03"]

1. Nf3 {[%clk 0:00:00]}  c5 {[%clk 0:00:00]} 2. g3 {[%clk 0:02:50]}  Nc6 {[%clk 0:02:27]} 3. d4 {[%clk 0:02:46]}  cxd4 {[%clk 0:02:26]} 4. Nxd4 {[%clk 0:02:47]}  Nf6 {[%clk 0:02:26]} 5. Nxc6 {[%clk 0:02:47]}  bxc6 {[%clk 0:02:26]} 6. Bg2 {[%clk 0:02:47]}  d5 {[%clk 0:02:27]} 7. c4 {[%clk 0:02:48]}  e6 {[%clk 0:02:25]} 8. O-O {[%clk 0:02:47]}  Be7 {[%clk 0:02:25]} 9. b3 {[%clk 0:02:47]}  O-O {[%clk 0:02:25]} 10. Bb2 {[%clk 0:02:47]}  Ba6 {[%clk 0:02:25]} 11. Qc2 {[%clk 0:02:47]}  dxc4 {[%clk 0:02:17]} 12. Rd1 {[%clk 0:02:45]}  Qa5 {[%clk 0:02:13]} 13. h3 {[%clk 0:02:37]}  Rac8 {[%clk 0:02:11]} 14. Nc3 {[%clk 0:02:33]}  Nd5 {[%clk 0:02:11]} 15. Ne4 {[%clk 0:02:31]}  cxb3 {[%clk 0:02:06]} 16. axb3 {[%clk 0:02:24]}  Qb6 {[%clk 0:02:00]} 17. Nd2 {[%clk 0:02:22]}  Bxe2 {[%clk 0:01:59]} 18. Re1 {[%clk 0:01:37]}  Nb4 {[%clk 0:01:50]} 19. Qe4 {[%clk 0:01:37]}  Bd3 {[%clk 0:01:43]} 20. Qg4 {[%clk 0:01:22]}  Bg6 {[%clk 0:01:42]} 21. Nc4 {[%clk 0:01:20]}  Qb8 {[%clk 0:01:40]} 22. Be5 {[%clk 0:01:18]}  Qa8 {[%clk 0:01:35]} 23. Bd6 {[%clk 0:01:17]}  Bxd6 {[%clk 0:01:28]} 24. Nxd6 {[%clk 0:01:13]}  Rb8 {[%clk 0:01:26]} 25. h4 {[%clk 0:01:14]}  h5 {[%clk 0:01:25]} 26. Qc4 {[%clk 0:01:06]}  Rfd8 {[%clk 0:01:24]} 27. Rxe6 {[%clk 0:01:04]}  Nd5 {[%clk 0:01:21]} 28. Rxg6 {[%clk 0:00:38]}  fxg6 {[%clk 0:00:24]} 29. Ne4 {[%clk 0:00:25]}  Qb7 {[%clk 0:00:25]} 30. Ng5 {[%clk 0:00:20]}  Qe7 {[%clk 0:00:22]} 31. Qxc6 {[%clk 0:00:20]}  Qd6 {[%clk 0:00:21]} 32. Bxd5+ {[%clk 0:00:17]}  Qxd5 {[%clk 0:00:09]} 33. Qxg6 {[%clk 0:00:14]}  Qd3 {[%clk 0:00:07]} 34. Qf7+ {[%clk 0:00:15]}  Kh8 {[%clk 0:00:05]} 35. Rxa7 {[%clk 0:00:13]}  Qd1+ {[%clk 0:00:05]} 36. Kh2 {[%clk 0:00:14]}  Qd4 {[%clk 0:00:01]} 37. Qxh5+ {[%clk 0:00:14]}  Kg8 {[%clk 0:00:02]} 38. Qh7+ {[%clk 0:00:14]}  Kf8 {[%clk 0:00:03]} 39. Qh8# {[%clk 0:00:12]} 1-0


[Site "https://www.chess.com"]

[Event "Titled Tuesday Blitz January 10 Late 2023"]
[White "Yurovskykh, Oleksandr"]
[Black "Preotu, Razvan"]
[WhiteFideId "14134020"]
[BlackFideId "2613280"]
[WhiteElo "2328"]
[BlackElo "2475"]
[Result "1/2-1/2"]
[Round "05"]
[TimeControl "180+2"]
[Date "2023.01.10"]
[WhiteClock "0:00:06"]
[BlackClock "0:00:07"]

1. d4 {[%clk 0:00:00]}  Nf6 {[%clk 0:00:00]} 2. Nf3 {[%clk 0:02:58]}  g6 {[%clk 0:02:59]} 3. Bg5 {[%clk 0:02:56]}  Bg7 {[%clk 0:02:59]} 4. Nbd2 {[%clk 0:02:50]}  O-O {[%clk 0:02:59]} 5. c3 {[%clk 0:02:50]}  d6 {[%clk 0:03:00]} 6. e4 {[%clk 0:02:51]}  c5 {[%clk 0:02:59]} 7. d5 {[%clk 0:02:51]}  h6 {[%clk 0:03:00]} 8. Bh4 {[%clk 0:02:51]}  e6 {[%clk 0:02:58]} 9. dxe6 {[%clk 0:02:49]}  Bxe6 {[%clk 0:02:59]} 10. Bc4 {[%clk 0:02:49]}  Bxc4 {[%clk 0:02:59]} 11. Bxf6 {[%clk 0:02:46]}  Qxf6 {[%clk 0:02:35]} 12. Nxc4 {[%clk 0:02:45]}  Qe6 {[%clk 0:02:36]} 13. Qd5 {[%clk 0:02:45]}  Re8 {[%clk 0:02:35]} 14. O-O-O {[%clk 0:02:44]}  Qxd5 {[%clk 0:02:27]} 15. Rxd5 {[%clk 0:02:38]}  Rxe4 {[%clk 0:02:03]} 16. Nxd6 {[%clk 0:02:34]}  Re2 {[%clk 0:02:03]} 17. Nxb7 {[%clk 0:02:34]}  Na6 {[%clk 0:02:02]} 18. Rd2 {[%clk 0:02:17]}  Re7 {[%clk 0:02:02]} 19. Nd6 {[%clk 0:02:10]}  h5 {[%clk 0:01:47]} 20. Nc4 {[%clk 0:02:05]}  Bh6 {[%clk 0:01:35]} 21. Ne3 {[%clk 0:01:21]}  Bxe3 {[%clk 0:01:35]} 22. fxe3 {[%clk 0:01:21]}  Rxe3 {[%clk 0:01:25]} 23. Re1 {[%clk 0:01:22]}  Rxe1+ {[%clk 0:01:25]} 24. Nxe1 {[%clk 0:01:22]}  Nc7 {[%clk 0:01:13]} 25. Nd3 {[%clk 0:01:22]}  Ne6 {[%clk 0:00:56]} 26. Ne5 {[%clk 0:01:16]}  Rd8 {[%clk 0:00:56]} 27. Rxd8+ {[%clk 0:01:16]}  Nxd8 {[%clk 0:00:50]} 28. Kc2 {[%clk 0:01:00]}  g5 {[%clk 0:00:51]} 29. Kd3 {[%clk 0:01:00]}  f5 {[%clk 0:00:52]} 30. g3 {[%clk 0:00:59]}  Nb7 {[%clk 0:00:39]} 31. Nc6 {[%clk 0:00:32]}  Kf7 {[%clk 0:00:28]} 32. Nxa7 {[%clk 0:00:29]}  Ke6 {[%clk 0:00:22]} 33. Nb5 {[%clk 0:00:29]}  Ke5 {[%clk 0:00:22]} 34. b4 {[%clk 0:00:26]}  f4 {[%clk 0:00:17]} 35. gxf4+ {[%clk 0:00:21]}  Kxf4 {[%clk 0:00:13]} 36. a4 {[%clk 0:00:21]}  g4 {[%clk 0:00:13]} 37. a5 {[%clk 0:00:19]}  cxb4 {[%clk 0:00:07]} 38. cxb4 {[%clk 0:00:19]}  Nd8 {[%clk 0:00:07]} 39. Nd4 {[%clk 0:00:19]}  Nf7 {[%clk 0:00:06]} 40. a6 {[%clk 0:00:11]}  Ne5+ {[%clk 0:00:05]} 41. Ke2 {[%clk 0:00:10]}  Nd7 {[%clk 0:00:06]} 42. Ne6+ {[%clk 0:00:10]}  Ke5 {[%clk 0:00:07]} 43. Nc5 {[%clk 0:00:06]}  Nb6 {[%clk 0:00:06]} 44. a7 {[%clk 0:00:06]}  Kd5 {[%clk 0:00:06]} 45. Na4 {[%clk 0:00:04]}  Na8 {[%clk 0:00:07]} 46. b5 {[%clk 0:00:04]}  h4 {[%clk 0:00:07]} 47. b6 {[%clk 0:00:04]}  Kc6 {[%clk 0:00:06]} 48. Ke3 {[%clk 0:00:04]}  g3 {[%clk 0:00:06]} 49. hxg3 {[%clk 0:00:04]}  hxg3 {[%clk 0:00:06]} 50. Kf3 {[%clk 0:00:05]}  Kb7 {[%clk 0:00:05]} 51. Kxg3 {[%clk 0:00:06]}  Nxb6 {[%clk 0:00:06]} 52. Nxb6 {[%clk 0:00:06]}  Kxa7 {[%clk 0:00:07]} 1/2-1/2


[Site "https://www.chess.com"]

[Event "Titled Tuesday Blitz January 10 Late 2023"]
[White "Jaracz, Pawel"]
[Black "Richter, Paul"]
[WhiteFideId "1102222"]
[BlackFideId "2046350"]
[WhiteElo "2467"]
[BlackElo "2171"]
[Result "1/2-1/2"]
[Round "05"]
[TimeControl "180+2"]
[Date "2023.01.10"]
[WhiteClock "0:00:06"]
[BlackClock "0:00:07"]

1. e4 {[%clk 0:00:00]}  c5 {[%clk 0:00:00]} 2. Nf3 {[%clk 0:03:00]}  d6 {[%clk 0:02:59]} 3. d4 {[%clk 0:03:01]}  cxd4 {[%clk 0:02:56]} 4. Nxd4 {[%clk 0:03:00]}  Nf6 {[%clk 0:02:57]} 5. Nc3 {[%clk 0:03:00]}  g6 {[%clk 0:02:58]} 6. Be3 {[%clk 0:03:00]}  Bg7 {[%clk 0:02:58]} 7. f3 {[%clk 0:02:59]}  O-O {[%clk 0:02:58]} 8. Qd2 {[%clk 0:03:00]}  Nc6 {[%clk 0:02:59]} 9. Bc4 {[%clk 0:03:00]}  Bd7 {[%clk 0:02:58]} 10. Bb3 {[%clk 0:02:59]}  a5 {[%clk 0:02:58]} 11. a4 {[%clk 0:02:58]}  Rb8 {[%clk 0:02:51]} 12. Ndb5 {[%clk 0:02:54]}  Rc8 {[%clk 0:02:50]} 13. O-O {[%clk 0:02:54]}  Ne5 {[%clk 0:02:49]} 14. Kh1 {[%clk 0:02:54]}  Nc4 {[%clk 0:02:39]} 15. Bxc4 {[%clk 0:02:47]}  Rxc4 {[%clk 0:02:35]} 16. b3 {[%clk 0:02:47]}  Rc8 {[%clk 0:02:36]} 17. Bd4 {[%clk 0:02:46]}  Bc6 {[%clk 0:02:35]} 18. Rfe1 {[%clk 0:02:46]}  d5 {[%clk 0:01:58]} 19. exd5 {[%clk 0:02:45]}  Nxd5 {[%clk 0:01:28]} 20. Bxg7 {[%clk 0:02:15]}  Kxg7 {[%clk 0:01:03]} 21. Nxd5 {[%clk 0:02:15]}  Qxd5 {[%clk 0:00:56]} 22. Qc3+ {[%clk 0:01:55]}  Kg8 {[%clk 0:00:40]} 23. Na7 {[%clk 0:01:15]}  Rc7 {[%clk 0:00:38]} 24. Re5 {[%clk 0:01:14]}  Qd6 {[%clk 0:00:24]} 25. Qe1 {[%clk 0:01:14]}  b6 {[%clk 0:00:19]} 26. Rd1 {[%clk 0:01:00]}  Qf6 {[%clk 0:00:14]} 27. c4 {[%clk 0:00:58]}  Rxa7 {[%clk 0:00:14]} 28. Qe3 {[%clk 0:00:51]}  Rb7 {[%clk 0:00:13]} 29. h3 {[%clk 0:00:50]}  e6 {[%clk 0:00:12]} 30. Rd6 {[%clk 0:00:46]}  Rc8 {[%clk 0:00:13]} 31. f4 {[%clk 0:00:46]}  Be8 {[%clk 0:00:13]} 32. Kh2 {[%clk 0:00:44]}  Rcb8 {[%clk 0:00:13]} 33. Kg3 {[%clk 0:00:42]}  Qe7 {[%clk 0:00:12]} 34. Rdd5 {[%clk 0:00:39]}  Rd7 {[%clk 0:00:13]} 35. Qe2 {[%clk 0:00:30]}  Rxd5 {[%clk 0:00:13]} 36. cxd5 {[%clk 0:00:18]}  Bd7 {[%clk 0:00:10]} 37. Qc4 {[%clk 0:00:18]}  Rc8 {[%clk 0:00:11]} 38. Qd4 {[%clk 0:00:17]}  Qc5 {[%clk 0:00:10]} 39. Qd1 {[%clk 0:00:17]}  exd5 {[%clk 0:00:09]} 40. Rxd5 {[%clk 0:00:10]}  Qc3+ {[%clk 0:00:08]} 41. Rd3 {[%clk 0:00:10]}  Qf6 {[%clk 0:00:06]} 42. Rxd7 {[%clk 0:00:10]}  Rc3+ {[%clk 0:00:03]} 43. Rd3 {[%clk 0:00:10]}  Rxd3+ {[%clk 0:00:04]} 44. Qxd3 {[%clk 0:00:10]}  h5 {[%clk 0:00:03]} 45. Qe3 {[%clk 0:00:11]}  Kg7 {[%clk 0:00:04]} 46. Qe5 {[%clk 0:00:09]}  Qxe5 {[%clk 0:00:05]} 47. fxe5 {[%clk 0:00:08]}  Kf8 {[%clk 0:00:05]} 48. Kf4 {[%clk 0:00:08]}  Ke7 {[%clk 0:00:04]} 49. Ke4 {[%clk 0:00:08]}  Ke6 {[%clk 0:00:05]} 50. Kd4 {[%clk 0:00:07]}  h4 {[%clk 0:00:06]} 51. Ke4 {[%clk 0:00:07]}  f6 {[%clk 0:00:05]} 52. exf6 {[%clk 0:00:07]}  Kxf6 {[%clk 0:00:02]} 53. Kd5 {[%clk 0:00:07]}  Kf5 {[%clk 0:00:02]} 54. Kc6 {[%clk 0:00:07]}  Kf4 {[%clk 0:00:03]} 55. Kxb6 {[%clk 0:00:07]}  Kg3 {[%clk 0:00:04]} 56. Kxa5 {[%clk 0:00:08]}  Kxg2 {[%clk 0:00:05]} 57. b4 {[%clk 0:00:09]}  Kxh3 {[%clk 0:00:06]} 58. b5 {[%clk 0:00:09]}  g5 {[%clk 0:00:06]} 59. b6 {[%clk 0:00:10]}  g4 {[%clk 0:00:07]} 60. b7 {[%clk 0:00:11]}  g3 {[%clk 0:00:08]} 61. b8=Q {[%clk 0:00:11]}  g2 {[%clk 0:00:09]} 62. Qb3+ {[%clk 0:00:12]}  Kh2 {[%clk 0:00:09]} 63. Qc2 {[%clk 0:00:10]}  Kh1 {[%clk 0:00:10]} 64. Qe4 {[%clk 0:00:09]}  h3 {[%clk 0:00:10]} 65. Qf3 {[%clk 0:00:09]}  h2 {[%clk 0:00:09]} 66. Kb4 {[%clk 0:00:05]}  Kg1 {[%clk 0:00:09]} 67. Qe3+ {[%clk 0:00:06]}  Kf1 {[%clk 0:00:10]} 68. Qf3+ {[%clk 0:00:06]}  Kg1 {[%clk 0:00:10]} 69. Qd1+ {[%clk 0:00:06]}  Kf2 {[%clk 0:00:10]} 70. Qd2+ {[%clk 0:00:07]}  Kf1 {[%clk 0:00:11]} 71. Qd3+ {[%clk 0:00:07]}  Kf2 {[%clk 0:00:10]} 72. Qd4+ {[%clk 0:00:07]}  Kf1 {[%clk 0:00:10]} 73. Qe4 {[%clk 0:00:07]}  g1=Q {[%clk 0:00:10]} 74. Qd3+ {[%clk 0:00:08]}  Kf2 {[%clk 0:00:08]} 75. Qd4+ {[%clk 0:00:05]}  Kg2 {[%clk 0:00:06]} 76. Qg4+ {[%clk 0:00:06]}  Kf1 {[%clk 0:00:07]} 77. Qd1+ {[%clk 0:00:05]}  Kf2 {[%clk 0:00:07]} 78. Qd4+ {[%clk 0:00:05]}  Kg3 {[%clk 0:00:06]} 79. Qe5+ {[%clk 0:00:05]}  Kh3 {[%clk 0:00:07]} 80. Qh5+ {[%clk 0:00:05]}  Kg2 {[%clk 0:00:07]} 81. Qg4+ {[%clk 0:00:04]}  Kh1 {[%clk 0:00:07]} 82. Qf3+ {[%clk 0:00:04]}  Qg2 {[%clk 0:00:06]} 83. Qd1+ {[%clk 0:00:05]}  Qg1 {[%clk 0:00:06]} 84. Qf3+ {[%clk 0:00:05]}  Qg2 {[%clk 0:00:07]} 85. Qd1+ {[%clk 0:00:06]}  Qg1 {[%clk 0:00:07]} 86. Qf3+ {[%clk 0:00:06]} 1/2-1/2


[Site "https://www.chess.com"]